[Event "Titled Tuesday Blitz June 15 2021"]
[White "Pastar, Slaven"]
[Black "Liang, Jason"]
[WhiteFideId "14402718"]
[BlackFideId "30940303"]
[WhiteElo "2227"]
[BlackElo "1976"]
[Result "1-0"]
[Round "03"]
[TimeControl "180+1"]
[Date "2021.06.15"]
[WhiteClock "0:00:18"]
[BlackClock "0:00:51"]

1. b3 {[%clk 0:03:00]}  Nf6 {[%clk 0:02:55]} 2. Bb2 {[%clk 0:03:01]}  e6 {[%clk 0:02:56]} 3. e3 {[%clk 0:03:01]}  Be7 {[%clk 0:02:56]} 4. c4 {[%clk 0:03:02]}  O-O {[%clk 0:02:56]} 5. Nf3 {[%clk 0:03:02]}  b6 {[%clk 0:02:57]} 6. Nc3 {[%clk 0:03:01]}  Bb7 {[%clk 0:02:57]} 7. d4 {[%clk 0:03:00]}  d5 {[%clk 0:02:50]} 8. Rc1 {[%clk 0:02:58]}  c5 {[%clk 0:02:50]} 9. cxd5 {[%clk 0:02:57]}  Nxd5 {[%clk 0:02:49]} 10. dxc5 {[%clk 0:02:57]}  Bxc5 {[%clk 0:02:48]} 11. Nxd5 {[%clk 0:02:54]}  Qxd5 {[%clk 0:02:48]} 12. Qxd5 {[%clk 0:02:53]}  Bxd5 {[%clk 0:02:49]} 13. Bc4 {[%clk 0:02:47]}  Rd8 {[%clk 0:02:34]} 14. O-O {[%clk 0:02:37]}  Nc6 {[%clk 0:02:34]} 15. Ne5 {[%clk 0:02:08]}  Nxe5 {[%clk 0:02:29]} 16. Bxe5 {[%clk 0:02:09]}  Bxc4 {[%clk 0:02:23]} 17. Rxc4 {[%clk 0:02:10]}  Rd2 {[%clk 0:02:22]} 18. b4 {[%clk 0:02:07]}  Bf8 {[%clk 0:02:21]} 19. a4 {[%clk 0:02:05]}  a6 {[%clk 0:02:03]} 20. Rc6 {[%clk 0:01:47]}  b5 {[%clk 0:01:54]} 21. axb5 {[%clk 0:01:40]}  axb5 {[%clk 0:01:55]} 22. Rb6 {[%clk 0:01:18]}  Rd5 {[%clk 0:01:55]} 23. Bc3 {[%clk 0:01:09]}  Rc8 {[%clk 0:01:55]} 24. Be1 {[%clk 0:01:03]}  Rc1 {[%clk 0:01:52]} 25. f4 {[%clk 0:00:49]}  Rdd1 {[%clk 0:01:51]} 26. Kf2 {[%clk 0:00:49]}  Bxb4 {[%clk 0:01:11]} 27. Rb8+ {[%clk 0:00:48]}  Bf8 {[%clk 0:01:12]} 28. Rxb5 {[%clk 0:00:45]}  h5 {[%clk 0:01:08]} 29. Rb8 {[%clk 0:00:37]}  g6 {[%clk 0:01:04]} 30. Ke2 {[%clk 0:00:29]}  Ra1 {[%clk 0:00:50]} 31. Rxf8+ {[%clk 0:00:25]}  Kxf8 {[%clk 0:00:49]} 32. Bb4+ {[%clk 0:00:25]}  Kg7 {[%clk 0:00:50]} 33. Rxd1 {[%clk 0:00:24]}  Ra2+ {[%clk 0:00:48]} 34. Rd2 {[%clk 0:00:24]}  Ra4 {[%clk 0:00:47]} 35. Bc3+ {[%clk 0:00:24]}  Kf8 {[%clk 0:00:47]} 36. Bf6 {[%clk 0:00:22]}  Ra8 {[%clk 0:00:45]} 37. Rd8+ {[%clk 0:00:22]}  Rxd8 {[%clk 0:00:46]} 38. Bxd8 {[%clk 0:00:23]}  Ke8 {[%clk 0:00:46]} 39. Bf6 {[%clk 0:00:23]}  Kd7 {[%clk 0:00:47]} 40. Kd3 {[%clk 0:00:23]}  Kd6 {[%clk 0:00:48]} 41. Kd4 {[%clk 0:00:23]}  Kc6 {[%clk 0:00:48]} 42. Ke5 {[%clk 0:00:23]}  Kd7 {[%clk 0:00:49]} 43. h4 {[%clk 0:00:22]}  Ke8 {[%clk 0:00:49]} 44. Bg5 {[%clk 0:00:21]}  Kf8 {[%clk 0:00:50]} 45. Kf6 {[%clk 0:00:21]}  Kg8 {[%clk 0:00:50]} 46. Ke7 {[%clk 0:00:18]}  Kg7 {[%clk 0:00:51]} 47. Bf6+ {[%clk 0:00:18]}  Kg8 {[%clk 0:00:52]} 48. e4 {[%clk 0:00:18]}  e5 {[%clk 0:00:51]} 49. fxe5 {[%clk 0:00:18]}  Kh7 {[%clk 0:00:50]} 50. Kxf7 {[%clk 0:00:19]}  g5 {[%clk 0:00:50]} 51. e6 {[%clk 0:00:19]}  g4 {[%clk 0:00:49]} 52. e7 {[%clk 0:00:19]}  g3 {[%clk 0:00:50]} 53. e8=Q {[%clk 0:00:18]}  Kh6 {[%clk 0:00:51]} 54. Qh8# {[%clk 0:00:18]} 1-0


[Site "https://www.chess.com"]

[Event "Titled Tuesday Blitz June 15 2021"]
[White "Ponkratov, Pavel"]
[Black "Nguyen, Quoc Hy"]
[WhiteFideId "4157800"]
[BlackFideId "12410853"]
[WhiteElo "2826"]
[BlackElo "2634"]
[Result "1-0"]
[Round "03"]
[TimeControl "180+1"]
[Date "2021.06.15"]
[WhiteClock "0:02:23"]
[BlackClock "0:00:18"]

1. d4 {[%clk 0:03:00]}  d5 {[%clk 0:02:57]} 2. c4 {[%clk 0:03:01]}  c6 {[%clk 0:02:56]} 3. Nf3 {[%clk 0:03:02]}  e6 {[%clk 0:02:56]} 4. e3 {[%clk 0:03:03]}  f5 {[%clk 0:02:55]} 5. Nbd2 {[%clk 0:03:04]}  Nf6 {[%clk 0:02:55]} 6. Bd3 {[%clk 0:03:05]}  Bd6 {[%clk 0:02:54]} 7. O-O {[%clk 0:03:05]}  O-O {[%clk 0:02:54]} 8. b3 {[%clk 0:03:05]}  Bd7 {[%clk 0:02:54]} 9. a4 {[%clk 0:03:05]}  Qe7 {[%clk 0:02:53]} 10. Ne5 {[%clk 0:03:03]}  Be8 {[%clk 0:02:53]} 11. f4 {[%clk 0:03:03]}  Bh5 {[%clk 0:02:51]} 12. Qc2 {[%clk 0:03:02]}  Nbd7 {[%clk 0:02:50]} 13. c5 {[%clk 0:03:01]}  Bxe5 {[%clk 0:02:46]} 14. dxe5 {[%clk 0:02:45]}  Ne4 {[%clk 0:02:45]} 15. b4 {[%clk 0:02:41]}  a5 {[%clk 0:02:17]} 16. Ba3 {[%clk 0:02:40]}  axb4 {[%clk 0:02:15]} 17. Bxb4 {[%clk 0:02:40]}  b6 {[%clk 0:02:15]} 18. Bxe4 {[%clk 0:02:34]}  fxe4 {[%clk 0:02:15]} 19. Nb3 {[%clk 0:02:34]}  bxc5 {[%clk 0:00:56]} 20. Bxc5 {[%clk 0:02:34]}  Nxc5 {[%clk 0:00:56]} 21. Qxc5 {[%clk 0:02:34]}  Qxc5 {[%clk 0:00:45]} 22. Nxc5 {[%clk 0:02:34]}  Kf7 {[%clk 0:00:44]} 23. Rfb1 {[%clk 0:02:31]}  Rfb8 {[%clk 0:00:41]} 24. Rxb8 {[%clk 0:02:30]}  Rxb8 {[%clk 0:00:41]} 25. a5 {[%clk 0:02:31]}  Be2 {[%clk 0:00:41]} 26. a6 {[%clk 0:02:30]}  Ra8 {[%clk 0:00:40]} 27. a7 {[%clk 0:02:29]}  Ke7 {[%clk 0:00:40]} 28. Kf2 {[%clk 0:02:29]}  Bb5 {[%clk 0:00:38]} 29. g4 {[%clk 0:02:29]}  g6 {[%clk 0:00:36]} 30. h4 {[%clk 0:02:29]}  h5 {[%clk 0:00:34]} 31. gxh5 {[%clk 0:02:25]}  gxh5 {[%clk 0:00:35]} 32. Ke1 {[%clk 0:02:26]}  Bc4 {[%clk 0:00:23]} 33. Kd2 {[%clk 0:02:26]}  Bb5 {[%clk 0:00:23]} 34. Kc3 {[%clk 0:02:27]}  Bc4 {[%clk 0:00:23]} 35. Kd4 {[%clk 0:02:27]}  Bb5 {[%clk 0:00:23]} 36. Nb7 {[%clk 0:02:26]}  Kd7 {[%clk 0:00:22]} 37. Kc5 {[%clk 0:02:26]}  Kc7 {[%clk 0:00:21]} 38. Nd6 {[%clk 0:02:26]}  Be2 {[%clk 0:00:20]} 39. f5 {[%clk 0:02:26]}  exf5 {[%clk 0:00:19]} 40. e6 {[%clk 0:02:26]}  f4 {[%clk 0:00:18]} 41. exf4 {[%clk 0:02:25]}  Bg4 {[%clk 0:00:17]} 42. e7 {[%clk 0:02:25]}  Bd7 {[%clk 0:00:17]} 43. f5 {[%clk 0:02:25]}  e3 {[%clk 0:00:17]} 44. f6 {[%clk 0:02:25]}  e2 {[%clk 0:00:18]} 45. f7 {[%clk 0:02:23]} 1-0


[Site "https://www.chess.com"]

[Event "Titled Tuesday Blitz June 15 2021"]
[White "Rud_Makarian"]
[Black "Jarmula, Lukasz"]
[BlackFideId "1160664"]
[WhiteElo "2752"]
[BlackElo "2244"]
[Result "1-0"]
[Round "03"]
[TimeControl "180+1"]
[Date "2021.06.15"]
[WhiteClock "0:00:47"]
[BlackClock "0:00:30"]

1. d3 {[%clk 0:02:53]}  d5 {[%clk 0:02:58]} 2. f4 {[%clk 0:02:53]}  g6 {[%clk 0:02:57]} 3. Nf3 {[%clk 0:02:53]}  Bg7 {[%clk 0:02:57]} 4. g3 {[%clk 0:02:54]}  Nf6 {[%clk 0:02:57]} 5. Bg2 {[%clk 0:02:55]}  O-O {[%clk 0:02:58]} 6. O-O {[%clk 0:02:56]}  c5 {[%clk 0:02:58]} 7. Ne5 {[%clk 0:02:56]}  Qc7 {[%clk 0:02:52]} 8. e4 {[%clk 0:02:53]}  dxe4 {[%clk 0:02:51]} 9. dxe4 {[%clk 0:02:54]}  Rd8 {[%clk 0:02:50]} 10. Qe2 {[%clk 0:02:54]}  b6 {[%clk 0:02:47]} 11. Nc3 {[%clk 0:02:50]}  Ba6 {[%clk 0:02:47]} 12. Nb5 {[%clk 0:02:49]}  Qc8 {[%clk 0:02:40]} 13. c4 {[%clk 0:02:45]}  Bb7 {[%clk 0:02:36]} 14. Nc3 {[%clk 0:02:37]}  e6 {[%clk 0:02:30]} 15. Be3 {[%clk 0:02:28]}  Nc6 {[%clk 0:02:28]} 16. Nxc6 {[%clk 0:02:27]}  Bxc6 {[%clk 0:02:22]} 17. e5 {[%clk 0:02:22]}  Nd7 {[%clk 0:02:12]} 18. Rad1 {[%clk 0:02:18]}  Bf8 {[%clk 0:02:03]} 19. Ne4 {[%clk 0:02:16]}  Qb7 {[%clk 0:01:49]} 20. Rxd7 {[%clk 0:01:28]}  Rxd7 {[%clk 0:01:36]} 21. Nf6+ {[%clk 0:01:29]}  Kg7 {[%clk 0:01:29]} 22. Nxd7 {[%clk 0:01:29]}  Qxd7 {[%clk 0:01:26]} 23. Rd1 {[%clk 0:01:29]}  Qb7 {[%clk 0:01:25]} 24. Bxc6 {[%clk 0:01:29]}  Qxc6 {[%clk 0:01:25]} 25. Qg2 {[%clk 0:01:29]}  Qc8 {[%clk 0:01:15]} 26. h4 {[%clk 0:01:12]}  h5 {[%clk 0:01:14]} 27. g4 {[%clk 0:01:10]}  hxg4 {[%clk 0:01:13]} 28. Qxg4 {[%clk 0:01:11]}  Qc6 {[%clk 0:00:59]} 29. Qg2 {[%clk 0:01:09]}  Qc8 {[%clk 0:00:42]} 30. h5 {[%clk 0:01:08]}  Be7 {[%clk 0:00:42]} 31. hxg6 {[%clk 0:01:04]}  fxg6 {[%clk 0:00:41]} 32. Qh3 {[%clk 0:00:54]}  Qc6 {[%clk 0:00:38]} 33. f5 {[%clk 0:00:52]}  Rh8 {[%clk 0:00:30]} 34. f6+ {[%clk 0:00:50]}  Kf7 {[%clk 0:00:30]} 35. Qxh8 {[%clk 0:00:47]} 1-0


[Site "https://www.chess.com"]

[Event "Titled Tuesday Blitz June 15 2021"]
[White "San, Thit Lwin"]
[Black "Aditya Mittal"]
[WhiteFideId "13001272"]
[BlackFideId "35042025"]
[WhiteElo "2232"]
[BlackElo "2171"]
[Result "0-1"]
[Round "03"]
[TimeControl "180+1"]
[Date "2021.06.15"]
[WhiteClock "0:00:04"]
[BlackClock "0:00:50"]

1. Nf3 {[%clk 0:03:00]}  d5 {[%clk 0:02:59]} 2. c4 {[%clk 0:03:00]}  c6 {[%clk 0:02:58]} 3. d4 {[%clk 0:03:01]}  Nf6 {[%clk 0:02:59]} 4. Nc3 {[%clk 0:03:02]}  e6 {[%clk 0:02:59]} 5. e3 {[%clk 0:03:02]}  Nbd7 {[%clk 0:03:00]} 6. Qc2 {[%clk 0:03:02]}  Bd6 {[%clk 0:02:58]} 7. b3 {[%clk 0:03:03]}  O-O {[%clk 0:02:58]} 8. Bb2 {[%clk 0:03:03]}  e5 {[%clk 0:02:58]} 9. cxd5 {[%clk 0:03:02]}  cxd5 {[%clk 0:02:56]} 10. Nb5 {[%clk 0:02:58]}  Bb4+ {[%clk 0:02:55]} 11. Bc3 {[%clk 0:02:53]}  Qa5 {[%clk 0:02:19]} 12. Bxb4 {[%clk 0:02:41]}  Qxb4+ {[%clk 0:02:20]} 13. Qd2 {[%clk 0:02:21]}  Qxd2+ {[%clk 0:02:16]} 14. Nxd2 {[%clk 0:02:20]}  a6 {[%clk 0:01:55]} 15. dxe5 {[%clk 0:02:15]}  Nxe5 {[%clk 0:01:56]} 16. Nd4 {[%clk 0:02:10]}  Bg4 {[%clk 0:01:57]} 17. f3 {[%clk 0:02:02]}  Bd7 {[%clk 0:01:53]} 18. Be2 {[%clk 0:01:50]}  Nc6 {[%clk 0:01:43]} 19. Rc1 {[%clk 0:01:40]}  Nxd4 {[%clk 0:01:41]} 20. exd4 {[%clk 0:01:39]}  Rac8 {[%clk 0:01:25]} 21. Kf2 {[%clk 0:01:37]}  Rfe8 {[%clk 0:01:24]} 22. Bd3 {[%clk 0:01:28]}  g6 {[%clk 0:01:24]} 23. Rc5 {[%clk 0:01:14]}  Bc6 {[%clk 0:01:18]} 24. Re1 {[%clk 0:01:05]}  Nh5 {[%clk 0:01:13]} 25. Rxe8+ {[%clk 0:00:57]}  Rxe8 {[%clk 0:01:13]} 26. g3 {[%clk 0:00:57]}  Ng7 {[%clk 0:01:14]} 27. Bxa6 {[%clk 0:00:50]}  Ne6 {[%clk 0:01:04]} 28. Rc1 {[%clk 0:00:49]}  bxa6 {[%clk 0:00:53]} 29. Rxc6 {[%clk 0:00:47]}  Nxd4 {[%clk 0:00:54]} 30. Rd6 {[%clk 0:00:23]}  Re2+ {[%clk 0:00:54]} 31. Kf1 {[%clk 0:00:24]}  Rxd2 {[%clk 0:00:55]} 32. Rxd5 {[%clk 0:00:24]}  Nxf3 {[%clk 0:00:50]} 33. Rxd2 {[%clk 0:00:18]}  Nxd2+ {[%clk 0:00:50]} 34. Ke2 {[%clk 0:00:19]}  Ne4 {[%clk 0:00:51]} 35. Kd3 {[%clk 0:00:15]}  f5 {[%clk 0:00:51]} 36. b4 {[%clk 0:00:11]}  Kf7 {[%clk 0:00:50]} 37. a4 {[%clk 0:00:08]}  Ke6 {[%clk 0:00:50]} 38. Kc4 {[%clk 0:00:06]}  Kd6 {[%clk 0:00:50]} 39. b5 {[%clk 0:00:04]}  a5 {[%clk 0:00:51]} 40. Kd4 {[%clk 0:00:04]}  Nc5 {[%clk 0:00:50]} 0-1


[Site "https://www.chess.com"]

[Event "Titled Tuesday Blitz June 15 2021"]
[White "Senthil Maran K"]
[Black "SpeedofLight0"]
[WhiteFideId "25035681"]
[WhiteElo "2194"]
[BlackElo "2787"]
[Result "0-1"]
[Round "03"]
[TimeControl "180+1"]
[Date "2021.06.15"]
[WhiteClock "0:00:02"]
[BlackClock "0:00:33"]

1. d4 {[%clk 0:03:00]}  Nf6 {[%clk 0:02:53]} 2. c4 {[%clk 0:03:00]}  e6 {[%clk 0:02:53]} 3. g3 {[%clk 0:03:00]}  d5 {[%clk 0:02:48]} 4. Bg2 {[%clk 0:03:00]}  dxc4 {[%clk 0:02:46]} 5. Nf3 {[%clk 0:03:00]}  a6 {[%clk 0:02:34]} 6. O-O {[%clk 0:03:00]}  Nc6 {[%clk 0:02:35]} 7. Nbd2 {[%clk 0:03:00]}  b5 {[%clk 0:02:22]} 8. b3 {[%clk 0:02:56]}  Bb7 {[%clk 0:02:08]} 9. Bb2 {[%clk 0:02:16]}  cxb3 {[%clk 0:02:08]} 10. Nxb3 {[%clk 0:02:13]}  Nb4 {[%clk 0:02:05]} 11. a3 {[%clk 0:01:55]}  Nbd5 {[%clk 0:02:02]} 12. Qc2 {[%clk 0:01:51]}  c6 {[%clk 0:01:54]} 13. e4 {[%clk 0:01:37]}  Nb6 {[%clk 0:01:53]} 14. Na5 {[%clk 0:01:26]}  Qc7 {[%clk 0:01:53]} 15. Ne5 {[%clk 0:01:05]}  Rc8 {[%clk 0:01:43]} 16. Rac1 {[%clk 0:00:34]}  Na4 {[%clk 0:01:35]} 17. Nxb7 {[%clk 0:00:23]}  Qxb7 {[%clk 0:01:36]} 18. d5 {[%clk 0:00:16]}  Nxb2 {[%clk 0:01:21]} 19. Qxb2 {[%clk 0:00:09]}  cxd5 {[%clk 0:01:04]} 20. exd5 {[%clk 0:00:08]}  Nxd5 {[%clk 0:00:59]} 21. Rxc8+ {[%clk 0:00:06]}  Qxc8 {[%clk 0:00:59]} 22. Rc1 {[%clk 0:00:04]}  Qb7 {[%clk 0:00:58]} 23. Qd4 {[%clk 0:00:03]}  Bxa3 {[%clk 0:00:46]} 24. Nc6 {[%clk 0:00:03]}  Bxc1 {[%clk 0:00:38]} 25. Qxg7 {[%clk 0:00:02]}  Qxc6 {[%clk 0:00:33]} 26. Qxh8+ {[%clk 0:00:02]}  Ke7 {[%clk 0:00:33]} 27. Qa8 {[%clk 0:00:02]}  Qxa8 {[%clk 0:00:33]} 0-1


[Site "https://www.chess.com"]

[Event "Titled Tuesday Blitz June 15 2021"]
[White "Shapiro, David"]
[Black "Kamsky, Gata"]
[WhiteFideId "24133523"]
[BlackFideId "2000024"]
[WhiteElo "2234"]
[BlackElo "2644"]
[Result "0-1"]
[Round "03"]
[TimeControl "180+1"]
[Date "2021.06.15"]
[WhiteClock "0:00:24"]
[BlackClock "0:01:14"]

1. d4 {[%clk 0:03:00]}  Nf6 {[%clk 0:02:59]} 2. Bf4 {[%clk 0:02:58]}  g6 {[%clk 0:02:50]} 3. Nc3 {[%clk 0:02:57]}  d5 {[%clk 0:02:49]} 4. e3 {[%clk 0:02:58]}  c6 {[%clk 0:02:48]} 5. Nf3 {[%clk 0:02:50]}  Bg4 {[%clk 0:02:48]} 6. Be2 {[%clk 0:02:48]}  Bxf3 {[%clk 0:02:48]} 7. Bxf3 {[%clk 0:02:49]}  Nbd7 {[%clk 0:02:48]} 8. Qe2 {[%clk 0:02:47]}  Bg7 {[%clk 0:02:48]} 9. h4 {[%clk 0:02:44]}  h5 {[%clk 0:02:47]} 10. O-O-O {[%clk 0:02:44]}  Qa5 {[%clk 0:02:44]} 11. Kb1 {[%clk 0:02:43]}  Nb6 {[%clk 0:02:42]} 12. e4 {[%clk 0:02:39]}  Nc4 {[%clk 0:02:14]} 13. Bc1 {[%clk 0:02:19]}  e6 {[%clk 0:02:10]} 14. exd5 {[%clk 0:02:08]}  cxd5 {[%clk 0:02:07]} 15. Nxd5 {[%clk 0:02:06]}  Na3+ {[%clk 0:02:07]} 16. bxa3 {[%clk 0:02:05]}  Nxd5 {[%clk 0:02:08]} 17. Bb2 {[%clk 0:01:59]}  Rc8 {[%clk 0:01:57]} 18. Rd3 {[%clk 0:01:35]}  O-O {[%clk 0:01:39]} 19. Rb3 {[%clk 0:01:25]}  Nc3+ {[%clk 0:01:36]} 20. Bxc3 {[%clk 0:01:05]}  Rxc3 {[%clk 0:01:37]} 21. Qb5 {[%clk 0:00:50]}  Rxb3+ {[%clk 0:01:35]} 22. Qxb3 {[%clk 0:00:51]}  Bxd4 {[%clk 0:01:34]} 23. Rd1 {[%clk 0:00:49]}  Bxf2 {[%clk 0:01:32]} 24. Qxb7 {[%clk 0:00:38]}  Bg3 {[%clk 0:01:20]} 25. Qb3 {[%clk 0:00:23]}  Rb8 {[%clk 0:01:17]} 26. Bb7 {[%clk 0:00:24]}  Qc7 {[%clk 0:01:14]} 0-1


[Site "https://www.chess.com"]

[Event "Titled Tuesday Blitz June 15 2021"]
[White "Shapkin, Anatoliy"]
[Black "Plotnikov, Pavel"]
[WhiteFideId "34108332"]
[BlackFideId "4170342"]
[WhiteElo "2223"]
[BlackElo "2298"]
[Result "0-1"]
[Round "03"]
[TimeControl "180+1"]
[Date "2021.06.15"]
[WhiteClock "0:00:12"]
[BlackClock "0:00:11"]

1. d4 {[%clk 0:03:00]}  Nf6 {[%clk 0:02:59]} 2. c4 {[%clk 0:03:01]}  g6 {[%clk 0:02:58]} 3. Nc3 {[%clk 0:03:01]}  Bg7 {[%clk 0:02:54]} 4. Nf3 {[%clk 0:03:02]}  d6 {[%clk 0:02:47]} 5. e4 {[%clk 0:03:02]}  O-O {[%clk 0:02:47]} 6. Be2 {[%clk 0:03:03]}  e5 {[%clk 0:02:46]} 7. O-O {[%clk 0:03:04]}  Nc6 {[%clk 0:02:46]} 8. dxe5 {[%clk 0:03:04]}  Nxe5 {[%clk 0:02:46]} 9. Nd4 {[%clk 0:03:04]}  Nc6 {[%clk 0:02:31]} 10. Be3 {[%clk 0:03:03]}  Qe7 {[%clk 0:02:30]} 11. f3 {[%clk 0:03:03]}  Bd7 {[%clk 0:02:28]} 12. Qd2 {[%clk 0:03:03]}  Rad8 {[%clk 0:02:27]} 13. Nc2 {[%clk 0:03:02]}  Rfe8 {[%clk 0:02:26]} 14. Rfd1 {[%clk 0:03:02]}  Ne5 {[%clk 0:02:21]} 15. Rac1 {[%clk 0:03:02]}  Be6 {[%clk 0:02:18]} 16. Bf1 {[%clk 0:03:02]}  Nxc4 {[%clk 0:02:16]} 17. Bxc4 {[%clk 0:03:02]}  Bxc4 {[%clk 0:02:17]} 18. b3 {[%clk 0:03:03]}  Be6 {[%clk 0:02:15]} 19. Nd4 {[%clk 0:03:03]}  Bc8 {[%clk 0:02:12]} 20. Ndb5 {[%clk 0:03:03]}  a6 {[%clk 0:01:58]} 21. Nd4 {[%clk 0:03:01]}  d5 {[%clk 0:01:54]} 22. Bf2 {[%clk 0:02:59]}  dxe4 {[%clk 0:01:53]} 23. fxe4 {[%clk 0:03:00]}  Nxe4 {[%clk 0:01:54]} 24. Nxe4 {[%clk 0:03:00]}  Qxe4 {[%clk 0:01:54]} 25. Re1 {[%clk 0:02:41]}  Qd5 {[%clk 0:01:43]} 26. Rxe8+ {[%clk 0:02:41]}  Rxe8 {[%clk 0:01:44]} 27. Qb4 {[%clk 0:02:37]}  a5 {[%clk 0:01:36]} 28. Qb5 {[%clk 0:02:18]}  Qxb5 {[%clk 0:01:32]} 29. Nxb5 {[%clk 0:02:18]}  c6 {[%clk 0:01:32]} 30. Nd6 {[%clk 0:02:19]}  Rd8 {[%clk 0:01:32]} 31. Nxc8 {[%clk 0:02:19]}  Rxc8 {[%clk 0:01:33]} 32. Bb6 {[%clk 0:02:17]}  Bf6 {[%clk 0:01:27]} 33. a4 {[%clk 0:02:07]}  Bd8 {[%clk 0:01:22]} 34. Bd4 {[%clk 0:02:06]}  Bc7 {[%clk 0:01:16]} 35. g3 {[%clk 0:02:04]}  f5 {[%clk 0:01:15]} 36. Bc3 {[%clk 0:02:00]}  Kf7 {[%clk 0:01:13]} 37. Kf1 {[%clk 0:01:57]}  Rd8 {[%clk 0:01:08]} 38. Ke2 {[%clk 0:01:45]}  Bb6 {[%clk 0:01:05]} 39. Rf1 {[%clk 0:01:42]}  Ke6 {[%clk 0:01:03]} 40. g4 {[%clk 0:01:30]}  Bc7 {[%clk 0:00:43]} 41. gxf5+ {[%clk 0:01:22]}  gxf5 {[%clk 0:00:44]} 42. Rf3 {[%clk 0:01:23]}  Rg8 {[%clk 0:00:31]} 43. Rh3 {[%clk 0:01:19]}  Rg2+ {[%clk 0:00:30]} 44. Kd3 {[%clk 0:01:11]}  Rxh2 {[%clk 0:00:30]} 45. Re3+ {[%clk 0:01:11]}  Kf7 {[%clk 0:00:27]} 46. b4 {[%clk 0:01:01]}  f4 {[%clk 0:00:19]} 47. Re1 {[%clk 0:00:53]}  Rh3+ {[%clk 0:00:18]} 48. Kc2 {[%clk 0:00:51]}  f3 {[%clk 0:00:15]} 49. bxa5 {[%clk 0:00:47]}  f2 {[%clk 0:00:15]} 50. Rf1 {[%clk 0:00:48]}  Rf3 {[%clk 0:00:15]} 51. Bd2 {[%clk 0:00:39]}  h5 {[%clk 0:00:14]} 52. Kd1 {[%clk 0:00:39]}  Bg3 {[%clk 0:00:11]} 53. Ke2 {[%clk 0:00:37]}  Rf6 {[%clk 0:00:11]} 54. Bc3 {[%clk 0:00:34]}  Re6+ {[%clk 0:00:11]} 55. Kf3 {[%clk 0:00:35]}  Re1 {[%clk 0:00:09]} 56. Kg2 {[%clk 0:00:25]}  Rxf1 {[%clk 0:00:09]} 57. Kxf1 {[%clk 0:00:26]}  h4 {[%clk 0:00:09]} 58. Bd4 {[%clk 0:00:23]}  Ke6 {[%clk 0:00:10]} 59. Kg2 {[%clk 0:00:19]}  Kd5 {[%clk 0:00:09]} 60. Bb6 {[%clk 0:00:19]}  Kc4 {[%clk 0:00:09]} 61. Be3 {[%clk 0:00:17]}  Kb4 {[%clk 0:00:09]} 62. Bb6 {[%clk 0:00:16]}  Kxa4 {[%clk 0:00:10]} 63. Kf1 {[%clk 0:00:16]}  h3 {[%clk 0:00:10]} 64. a6 {[%clk 0:00:14]}  bxa6 {[%clk 0:00:10]} 65. Bxf2 {[%clk 0:00:12]}  Bxf2 {[%clk 0:00:11]} 0-1


[Site "https://www.chess.com"]

[Event "Titled Tuesday Blitz June 15 2021"]
[White "Shkapenko, Pavel"]
[Black "Quparadze, Giga"]
[WhiteFideId "4151933"]
[BlackFideId "13602250"]
[WhiteElo "2386"]
[BlackElo "2658"]
[Result "0-1"]
[Round "03"]
[TimeControl "180+1"]
[Date "2021.06.15"]
[WhiteClock "0:00:21"]
[BlackClock "0:02:06"]

1. e4 {[%clk 0:03:00]}  c5 {[%clk 0:02:59]} 2. c3 {[%clk 0:03:00]}  d5 {[%clk 0:02:59]} 3. exd5 {[%clk 0:03:00]}  Qxd5 {[%clk 0:03:00]} 4. d4 {[%clk 0:03:00]}  g6 {[%clk 0:03:00]} 5. dxc5 {[%clk 0:02:59]}  Qxc5 {[%clk 0:02:58]} 6. Be3 {[%clk 0:02:59]}  Qc7 {[%clk 0:02:58]} 7. Na3 {[%clk 0:03:00]}  a6 {[%clk 0:02:56]} 8. Nc4 {[%clk 0:02:59]}  Nd7 {[%clk 0:02:56]} 9. Qd2 {[%clk 0:02:58]}  b5 {[%clk 0:02:54]} 10. Nb6 {[%clk 0:02:22]}  Nxb6 {[%clk 0:02:51]} 11. Qd4 {[%clk 0:02:23]}  Nf6 {[%clk 0:02:50]} 12. Qxb6 {[%clk 0:02:23]}  Qxb6 {[%clk 0:02:49]} 13. Bxb6 {[%clk 0:02:23]}  Bb7 {[%clk 0:02:50]} 14. a4 {[%clk 0:02:22]}  b4 {[%clk 0:02:47]} 15. cxb4 {[%clk 0:02:15]}  e6 {[%clk 0:02:46]} 16. Bc5 {[%clk 0:02:03]}  Nd5 {[%clk 0:02:46]} 17. Bxf8 {[%clk 0:02:02]}  Kxf8 {[%clk 0:02:46]} 18. b5 {[%clk 0:02:00]}  axb5 {[%clk 0:02:46]} 19. Bxb5 {[%clk 0:01:58]}  Nf4 {[%clk 0:02:36]} 20. f3 {[%clk 0:01:58]}  Nxg2+ {[%clk 0:02:35]} 21. Kf2 {[%clk 0:01:58]}  Nf4 {[%clk 0:02:36]} 22. Ne2 {[%clk 0:01:58]}  Nd5 {[%clk 0:02:34]} 23. Rac1 {[%clk 0:01:49]}  Ke7 {[%clk 0:02:33]} 24. Nc3 {[%clk 0:01:49]}  Nc7 {[%clk 0:02:31]} 25. Be2 {[%clk 0:01:43]}  Rhc8 {[%clk 0:02:30]} 26. b4 {[%clk 0:01:29]}  e5 {[%clk 0:02:30]} 27. a5 {[%clk 0:01:13]}  Ne6 {[%clk 0:02:30]} 28. Nb5 {[%clk 0:01:08]}  Nf4 {[%clk 0:02:28]} 29. Bc4 {[%clk 0:00:48]}  Ba6 {[%clk 0:02:23]} 30. Na3 {[%clk 0:00:45]}  Bxc4 {[%clk 0:02:17]} 31. Rxc4 {[%clk 0:00:46]}  Nd3+ {[%clk 0:02:16]} 32. Ke3 {[%clk 0:00:45]}  Nxb4 {[%clk 0:02:14]} 33. Rhc1 {[%clk 0:00:31]}  Nd5+ {[%clk 0:02:09]} 34. Ke4 {[%clk 0:00:30]}  Nf6+ {[%clk 0:02:09]} 35. Kxe5 {[%clk 0:00:21]}  Rxa5+ {[%clk 0:02:07]} 36. Kd4 {[%clk 0:00:21]}  Rd8+ {[%clk 0:02:06]} 0-1


[Site "https://www.chess.com"]